[Event "GER-chT Youth Countries 2018"]
[Site "Wurzburg"]
[Date "2018.10.07"]
[Round "7"]
[White "Schneider, Jana"]
[Black "Pfreundt, Jakob"]
[Result "0-1"]
[ECO "C08"]
[WhiteElo "2174"]
[BlackElo "2358"]
[Annotator "ChessBase"]
[PlyCount "126"]
[EventDate "2018.10.03"]
[EventType "team-tourn"]
[EventCountry "GER"]
[SourceTitle "playchess.com"]
[Source "ChessBase"]
[SourceQuality "1"]
[TimeControl "40/5400+30:1800+30"]

1. e4 {[%emt 0:00:00]} e6 {[%emt 0:00:00]} 2. d4 {[%emt 0:00:00]} d5 {[%emt 0:00:00]} 3. Nd2 {[%emt 0:00:00]} c5 {[%emt 0:00:00]} 4. exd5 {[%emt 0:00:02]} exd5 {[%emt 0:00:08]} 5. Ngf3 {[%emt 0:00:41]} Nf6 {[%emt 0:00:09]} 6. Bb5+ {[%emt 0:01:48]} Bd7 {[%emt 0:00:09]} 7. Bxd7+ {[%emt 0:00:22]} Nbxd7 {[%emt 0:00:09]} 8. O-O {[%emt 0:00:39]} Be7 {[%emt 0:00:12]} 9. dxc5 {[%emt 0:02:20]} Nxc5 {[%emt 0:00:10]} 10. Nb3 {[%emt 0:02:48]} Nce4 {[%emt 0:00:31]} 11. Nbd4 {[%emt 0:01:44]} Qc8 {[%emt 0:00:34]} 12. c3 {[%emt 0:05:35]} O-O {[%emt 0:01:36]} 13. Qd3 {[%emt 0:04:55]} Re8 {[%emt 0:08:01]} 14. Ne2 {[%emt 0:02:50]} Bf8 {[%emt 0:17:13]} 15. Be3 {[%emt 0:01:51]} Nd6 {[%emt 0:12:48]} 16. Rad1 {[%emt 0:10:51]} Qc4 {[%emt 0:00:53]} 17. b3 {[%emt 0:07:26]} Qxd3 {[%emt 0:00:56]} 18. Rxd3 {[%emt 0:00:02]} Nf5 {[%emt 0:00:16]} 19. Nf4 {[%emt 0:00:57]} Nxe3 {[%emt 0:00:30]} 20. fxe3 {[%emt 0:00:19]} Rac8 {[%emt 0:05:22]} 21. b4 {[%emt 0:07:06]} a6 {[%emt 0:10:29]} 22. h4 {[%emt 0:04:47]} g6 {[%emt 0:09:17]} 23. Nd4 {[%emt 0:06:02]} Bh6 {[%emt 0:03:56]} 24. Nde2 {[%emt 0:03:27]} Kg7 {[%emt 0:02:28]} 25. Rf3 {[%emt 0:08:53]} Re5 {[%emt 0:04:29]} 26. Kf1 {[%emt 0:04:10]} Rce8 {[%emt 0:04:06]} 27. Ke1 {[%emt 0:01:54]} Bxf4 {[%emt 0:01:23]} 28. Nxf4 {[%emt 0:00:26]} h6 {[%emt 0:00:18]} 29. Nh3 {[%emt 0:06:39]} Re4 {[%emt 0:04:06]} 30. Nf4 {[%emt 0:05:12]} R8e5 {[%emt 0:00:41]} 31. g3 {[%emt 0:00:56]} g5 {[%emt 0:01:14]} 32. hxg5 {[%emt 0:03:42]} hxg5 {[%emt 0:00:03]} 33. Ng2 {[%emt 0:00:22]} Rc4 {[%emt 0:04:41]} 34. Kd1 {[%emt 0:02:36]} Kg6 {[%emt 0:01:53]} 35. Kc2 {[%emt 0:01:10]} Ne4 {[%emt 0:03:09]} 36. Kb2 {[%emt 0:01:29]} Nd6 {[%emt 0:01:54]} 37. Rd4 {[%emt 0:01:35]} Rxd4 {[%emt 0:01:27]} 38. cxd4 {[%emt 0:00:11]} Re8 {[%emt 0:00:05]} 39. g4 {[%emt 0:02:27]} Rh8 {[%emt 0:01:04]} 40. Kc1 {[%emt 0:00:55]} Rh1+ {[%emt 0:01:42]} 41. Kc2 {[%emt 0:30:25]} Ne4 {[%emt 0:03:12]} 42. Kd3 {[%emt 0:00:00]} Rd1+ {[%emt 0:10:02]} 43. Ke2 {[%emt 0:00:00]} Rd2+ {[%emt 0:00:03]} 44. Kf1 {[%emt 0:00:00]} Rxa2 {[%emt 0:00:12]} 45. Kg1 {[%emt 0:00:00]} Ra1+ {[%emt 0:00:51]} 46. Kh2 {[%emt 0:00:00]} Rb1 {[%emt 0:00:28]} 47. Rf5 {[%emt 0:00:00]} Nf6 {[%emt 0:00:54]} 48. Kg3 {[%emt 0:00:00]} Rxb4 {[%emt 0:01:44]} 49. Ne1 {[%emt 0:00:00]} Rb3 {[%emt 0:03:31]} 50. Re5 {[%emt 0:00:00]} Ne4+ {[%emt 0:00:54]} 51. Kf3 {[%emt 0:00:00]} Rb5 {[%emt 0:02:23]} 52. Nd3 {[%emt 0:00:00]} f6 {[%emt 0:00:15]} 53. Re8 {[%emt 0:00:00]} Kf7 {[%emt 0:00:52]} 54. Rb8 {[%emt 0:00:00]} Ke6 {[%emt 0:00:27]} 55. Re8+ {[%emt 0:00:00]} Kd7 {[%emt 0:00:20]} 56. Rf8 {[%emt 0:00:00]} b6 {[%emt 0:01:08]} 57. Rb8 {[%emt 0:00:00]} Kc7 {[%emt 0:00:17]} 58. Ra8 {[%emt 0:00:00]} a5 {[%emt 0:00:06]} 59. Ke2 {[%emt 0:00:00]} Rb1 {[%emt 0:00:20]} 60. Ra7+ {[%emt 0:00:00]} Kc6 {[%emt 0:00:11]} 61. Rf7 {[%emt 0:00:00]} Rg1 {[%emt 0:00:29]} 62. Kf3 {[%emt 0:00:00]} Rd1 {[%emt 0:00:44]} 63. Nb2 {[%emt 0:00:00]} Rd2 {[%emt 0:00:10]} 0-1

[Event "GER-chT Youth Countries 2018"]
[Site "Wurzburg"]
[Date "2018.10.07"]
[Round "7"]
[White "Knuedel, Torben"]
[Black "Roseneck, Jonas"]
[Result "1/2-1/2"]
[ECO "C96"]
[WhiteElo "2135"]
[BlackElo "2262"]
[Annotator "ChessBase"]
[PlyCount "34"]
[EventDate "2018.10.03"]
[EventType "team-tourn"]
[EventCountry "GER"]
[SourceTitle "playchess.com"]
[Source "ChessBase"]
[SourceQuality "1"]
[TimeControl "40/5400+30:1800+30"]

1. e4 {[%emt 0:00:00]} e5 {[%emt 0:00:00]} 2. Nf3 {[%emt 0:00:01]} Nc6 {[%emt 0:00:00]} 3. Bb5 {[%emt 0:00:25]} a6 {[%emt 0:00:00]} 4. Ba4 {[%emt 0:00:15]} Nf6 {[%emt 0:00:00]} 5. O-O {[%emt 0:00:10]} Be7 {[%emt 0:00:00]} 6. Re1 {[%emt 0:00:05]} b5 {[%emt 0:00:03]} 7. Bb3 {[%emt 0:00:03]} d6 {[%emt 0:00:05]} 8. c3 {[%emt 0:00:09]} O-O {[%emt 0:00:04]} 9. h3 {[%emt 0:00:03]} Na5 {[%emt 0:00:04]} 10. Bc2 {[%emt 0:00:05]} c5 {[%emt 0:00:02]} 11. d4 {[%emt 0:01:02]} Nd7 {[%emt 0:00:05]} 12. Nbd2 {[%emt 0:08:13]} exd4 {[%emt 0:00:21]} 13. cxd4 {[%emt 0:00:10]} Nc6 {[%emt 0:00:04]} 14. a4 {[%emt 0:07:37]} Bb7 {[%emt 0:07:28]} 15. Nf1 {[%emt 0:12:22]} cxd4 {[%emt 0:05:08]} 16. Nxd4 {[%emt 0:02:02]} Nxd4 {[%emt 0:00:14]} 17. Qxd4 {[%emt 0:00:04]} Qc7 {[%emt 0:01:15]} 1/2-1/2

[Event "GER-chT Youth Countries 2018"]
[Site "Wurzburg"]
[Date "2018.10.07"]
[Round "7"]
[White "Koelle, Tobias"]
[Black "Doll, Alexander"]
[Result "1/2-1/2"]
[ECO "D35"]
[WhiteElo "2125"]
[BlackElo "2122"]
[Annotator "NA"]
[PlyCount "73"]
[EventDate "2018.10.03"]
[EventType "team-tourn"]
[EventCountry "GER"]
[SourceTitle "playchess.com"]
[Source "ChessBase"]
[SourceQuality "1"]
[TimeControl "40/5400+30:1800+30"]

{[%evp 25,68,38,26,-17,45,0,31,-4,40,54,52,32767,60,11,32767,0,85,92,92,52,32767,32767,32767,15,187,186,32767,187,32767,161,198,195,32767,32767,32767,32767,98,191,61,0,32767,0,32767,0,0]} 1. d4 {[%emt 0:00:00] Marin,M} Nf6 {[%emt 0:00:00]} 2. c4 {[%emt 0:00:00]} e6 {[%emt 0:00:00]} 3. Nc3 {[%emt 0:00:00]} d5 {[%emt 0:00:00]} 4. cxd5 {[%emt 0:00:00]} exd5 {[%emt 0:00:02]} 5. Bg5 {[%emt 0:00:04]} Be7 {[%emt 0:00:21]} 6. e3 {[%emt 0:00:07]} c6 {[%emt 0:00:17]} 7. Bd3 {[%emt 0:00:08]} Ne4 {[%emt 0:01:00]} 8. Bxe7 {[%emt 0:01:06]} Qxe7 {[%emt 0:00:09]} 9. Qc2 {[%emt 0:00:45]} Nxc3 {[%emt 0:00:03] D35: Damengambit (Abtauschvariante)} 10. bxc3 {[%emt 0:00:22]} Nd7 {[%emt 0:01:03]} 11. Ne2 {[%emt 0:00:53]} g6 $146 {[%emt 0:01:27]} ({Vorgänger:} 11... Nf6 12. O-O O-O 13. c4 dxc4 14. Qxc4 Rd8 15. Qc2 Bg4 16. Ng3 c5 17. h3 {½-½ (31) Comas Fabrego,L (2507)-Narciso Dublan,M (2530) Lorca 2005 CBM 111 [Marin,M]}) 12. O-O {[%emt 0:00:10]} O-O {[%emt 0:00:20]} 13. Rae1 {[%emt 0:00:21]} c5 {[%emt 0:06:11]} 14. Ng3 {[%emt 0:03:26]} Nf6 {[%emt 0:07:02]} ({Better is} 14... c4 $1 $11 15. Be2 f5) 15. Qb1 {[%emt 0:02:47]} Be6 {[%emt 0:07:33]} 16. f3 {[%emt 0:02:41]} Qc7 {[%emt 0:02:26]} 17. e4 {[%emt 0:07:56]} cxd4 {[%emt 0:01:42]} 18. cxd4 {[%emt 0:00:21]} Qb6 {[%emt 0:00:29]} 19. Qa1 {[%emt 0:10:01]} dxe4 {[%emt 0:22:16]} 20. Rb1 {[%emt 0:04:47]} Qa5 {[%emt 0:04:20]} (20... exd3 $11 {keeps the balance.} 21. Rxb6 axb6) 21. fxe4 {[%emt 0:02:04]} Ng4 {[%emt 0:00:58]} 22. Qb2 {[%emt 0:16:28]} ({Of course not} 22. Rxb7 $6 Qd2 $11) 22... Bxa2 {[%emt 0:04:25]} 23. Ra1 {[%emt 0:03:49]} Qg5 {[%emt 0:00:09]} 24. Rxa2 {[%emt 0:04:18]} ({Better is} 24. Rf3 $16 Be6 25. h3 (25. Qxb7 Rfb8 $14)) 24... Qe3+ $2 {[%emt 0:02:56]} (24... Qh6 $11 {and Black stays safe.} 25. Rf3 Qxh2+ 26. Kf1 Qh4) 25. Kh1 {[%emt 0:00:06]} Qxd3 {[%emt 0:01:23]} 26. Ra3 {[%emt 0:00:54]} Qc4 {[%emt 0:01:30]} 27. h3 {[%emt 0:00:50]} Nh6 {[%emt 0:02:11]} 28. Qd2 {[%emt 0:01:04]} Kg7 {[%emt 0:01:15]} 29. Nh5+ {[%emt 0:05:14]} gxh5 30. Qg5+ {[%emt 0:00:17]} Kh8 {[%emt 0:08:42]} 31. Qf6+ {[%emt 0:00:10]} Kg8 {[%emt 0:00:03]} 32. Ra5 {[%emt 0:06:00]} (32. Rg3+ $14 Ng4 33. hxg4) 32... b5 {[%emt 0:03:49]} 33. Qg5+ {[%emt 0:02:33]} Kh8 {[%emt 0:02:53]} 34. Qf6+ {[%emt 0:00:43]} Kg8 $11 {[%emt 0:00:02]} 35. Qg5+ {[%emt 0:07:04]} Kh8 36. Qf6+ Kg8 37. Qg5+ 1/2-1/2

[Event "GER-chT Youth Countries 2018"]
[Site "Wurzburg"]
[Date "2018.10.07"]
[Round "7"]
[White "Schmekel, Florian"]
[Black "Herbrig, Alexander"]
[Result "0-1"]
[ECO "E12"]
[WhiteElo "2106"]
[BlackElo "2277"]
[Annotator "ChessBase"]
[PlyCount "76"]
[EventDate "2018.10.03"]
[EventType "team-tourn"]
[EventCountry "GER"]
[SourceTitle "playchess.com"]
[Source "ChessBase"]
[SourceQuality "1"]
[TimeControl "40/5400+30:1800+30"]

1. d4 {[%emt 0:00:00]} Nf6 {[%emt 0:00:00]} 2. c4 {[%emt 0:00:00]} e6 {[%emt 0:00:00]} 3. Nf3 {[%emt 0:00:00]} b6 {[%emt 0:00:00]} 4. a3 {[%emt 0:00:00]} Bb7 {[%emt 0:00:00]} 5. Nc3 {[%emt 0:00:00]} d5 {[%emt 0:00:00]} 6. cxd5 {[%emt 0:00:04]} exd5 {[%emt 0:01:09]} 7. Bg5 {[%emt 0:02:40]} Be7 {[%emt 0:02:10]} 8. g3 {[%emt 0:01:53]} Ne4 {[%emt 0:06:04]} 9. Bxe7 {[%emt 0:01:27]} Qxe7 {[%emt 0:01:40]} 10. Bg2 {[%emt 0:00:59]} Nd7 {[%emt 0:01:49]} 11. O-O {[%emt 0:00:21]} O-O {[%emt 0:03:23]} 12. Rc1 {[%emt 0:02:43]} f5 {[%emt 0:03:50]} 13. b4 {[%emt 0:10:31]} c6 {[%emt 0:03:35]} 14. Ne1 {[%emt 0:13:23]} Rac8 {[%emt 0:04:41]} 15. Nd3 {[%emt 0:07:38]} Rfe8 {[%emt 0:05:47]} 16. Re1 {[%emt 0:06:45]} Ba6 {[%emt 0:04:31]} 17. e3 {[%emt 0:03:23]} Qf6 {[%emt 0:06:18]} 18. f4 {[%emt 0:05:59]} Bxd3 {[%emt 0:07:13]} 19. Qxd3 {[%emt 0:00:12]} Nxc3 {[%emt 0:02:19]} 20. Rxc3 {[%emt 0:00:24]} b5 {[%emt 0:00:36]} 21. a4 {[%emt 0:05:46]} a6 {[%emt 0:10:14]} 22. a5 {[%emt 0:02:47]} Qe6 {[%emt 0:02:27]} 23. Kf2 {[%emt 0:05:14]} Nf6 {[%emt 0:02:00]} 24. h3 {[%emt 0:01:13]} Qd6 {[%emt 0:05:24]} 25. Rb3 {[%emt 0:03:26]} Rf8 {[%emt 0:00:24]} 26. Kg1 {[%emt 0:12:58]} Qe6 {[%emt 0:09:10]} 27. Bf3 {[%emt 0:05:17]} g5 {[%emt 0:05:03]} 28. Kg2 {[%emt 0:04:14]} Kh8 {[%emt 0:01:17]} 29. fxg5 {[%emt 0:01:21]} Ne4 {[%emt 0:00:19]} 30. Bxe4 {[%emt 0:00:35]} fxe4 {[%emt 0:00:07]} 31. Qe2 {[%emt 0:01:17]} Rf3 {[%emt 0:00:16]} 32. Rc1 {[%emt 0:00:47]} Rcf8 {[%emt 0:02:11]} 33. Rb2 {[%emt 0:01:00]} h6 {[%emt 0:02:58]} 34. Rbc2 {[%emt 0:00:14]} Qf5 {[%emt 0:00:24]} 35. Qe1 {[%emt 0:01:20]} Qxg5 {[%emt 0:01:12]} 36. Rxc6 {[%emt 0:00:34]} Rg8 {[%emt 0:02:15]} 37. g4 {[%emt 0:01:15]} Rxe3 {[%emt 0:00:07]} 38. Qd1 {[%emt 0:00:32]} Qh4 {[%emt 0:00:31]} 0-1

[Event "GER-chT Youth Countries 2018"]
[Site "Wurzburg"]
[Date "2018.10.07"]
[Round "7"]
[White "Mantel, Ruben"]
[Black "Yankelevich, Michael"]
[Result "1-0"]
[ECO "D00"]
[WhiteElo "2101"]
[BlackElo "1961"]
[Annotator "NA"]
[PlyCount "119"]
[EventDate "2018.10.03"]
[EventType "team-tourn"]
[EventCountry "GER"]
[SourceTitle "playchess.com"]
[Source "ChessBase"]
[SourceQuality "1"]
[TimeControl "40/5400+30:1800+30"]

1. d4 {[%emt 0:00:00]} d5 {[%emt 0:00:34]} 2. Bf4 {[%emt 0:00:04]} e6 {[%emt 0:00:24]} 3. e3 {[%emt 0:00:16]} Nf6 {[%emt 0:00:23]} 4. c3 {[%emt 0:00:29]} c5 {[%emt 0:00:39]} 5. Nd2 {[%emt 0:00:33]} Nc6 {[%emt 0:00:30]} 6. Ngf3 {[%emt 0:00:22]} Be7 {[%emt 0:00:25]} 7. Ne5 {[%emt 0:01:54]} O-O {[%emt 0:03:06]} 8. Bd3 {[%emt 0:01:35]} h6 {[%emt 0:01:04] D02: 1 d4 d5 2 Nf3 sidelines, including 2...Nf6 3 g3 and 2...Nf6 3 Bf4} (8... Bd6 9. Ndf3 Qc7 10. h4 Ne4 11. Qc2 f6 12. Nxc6 Bxf4 13. exf4 Qxc6 14. dxc5 f5 15. b4 Qc7 16. Ne5 {0-1 (34) Wei,Y (2729)-So,W (2780) chess.com INT 2018}) 9. h4 {[%emt 0:05:57]} cxd4 {[%emt 0:01:36]} 10. exd4 {[%emt 0:00:15]} Nd7 {[%emt 0:02:28]} 11. Ndf3 $146 {[%emt 0:09:11]} ({Predecessor:} 11. Nxd7 Bxd7 12. Qh5 f5 13. O-O-O Be8 14. Qe2 Bf7 15. g4 Rc8 16. Kb1 {1-0 (42) Gutierrez,O (1960)-Flores Talavera,L (2043) Managua 2018}) 11... Ndxe5 {[%emt 0:00:27]} 12. dxe5 {[%emt 0:02:25]} f6 {[%emt 0:01:33]} 13. Qd2 {[%emt 0:42:48]} fxe5 {[%emt 0:01:42]} 14. Nxe5 {[%emt 0:06:14]} Nxe5 {[%emt 0:02:07]} 15. Bxe5 {[%emt 0:00:10]} Bxh4 {[%emt 0:01:14]} 16. g3 {[%emt 0:00:50]} Bg5 {[%emt 0:02:05]} ({Black should play} 16... Bf6 $15 17. Rh5 Qb6) 17. f4 {[%emt 0:00:36]} Bf6 {[%emt 0:00:11]} 18. O-O-O {[%emt 0:02:29]} Qb6 $2 {[%emt 0:03:16]} ({Black should play} 18... Bxe5 $11 19. fxe5 Qb6) 19. Bc2 {[%emt 0:04:06]} (19. Bxf6 $16 Rxf6 20. Bc2) 19... Bxe5 {[%emt 0:00:23]} 20. fxe5 {[%emt 0:00:12]} Rf3 {[%emt 0:00:52]} ({Don't play} 20... Rf2 $6 21. Qd3 $16) 21. Rhf1 {[%emt 0:12:52]} Qe3 {[%emt 0:01:30]} 22. Rxf3 {[%emt 0:00:09]} Qxf3 {[%emt 0:00:04]} 23. c4 {[%emt 0:00:40]} Qxg3 {[%emt 0:02:56]} 24. cxd5 {[%emt 0:01:07]} Qxe5 {[%emt 0:00:36]} 25. Qd3 {[%emt 0:04:09]} Qf5 $2 {[%emt 0:01:28]} (25... exd5 $17 26. Rf1 Qg5+ 27. Kb1 g6) 26. Qb5 {[%emt 0:00:34]} Qf4+ {[%emt 0:03:44]} 27. Kb1 {[%emt 0:00:02]} exd5 {[%emt 0:01:09]} 28. Qxd5+ {[%emt 0:01:42]} Kf8 {[%emt 0:01:05]} 29. Qc5+ {[%emt 0:00:05]} Kf7 {[%emt 0:00:19]} 30. Bb3+ {[%emt 0:01:49]} Be6 {[%emt 0:05:35]} 31. Rd7+ {[%emt 0:00:03]} Kg6 {[%emt 0:00:09]} 32. Bxe6 {[%emt 0:00:42]} Qf1+ {[%emt 0:01:10]} 33. Kc2 {[%emt 0:00:02]} Qe2+ {[%emt 0:00:19]} 34. Kc1 {[%emt 0:00:58]} Qf1+ {[%emt 0:00:48]} 35. Rd1 {[%emt 0:00:31]} Qf4+ {[%emt 0:00:17]} 36. Kb1 {[%emt 0:00:31]} Qe4+ {[%emt 0:00:40]} 37. Ka1 {[%emt 0:00:20]} Qxe6 {[%emt 0:01:42]} 38. Rd6 {[%emt 0:00:07]} Re8 {[%emt 0:00:14]} 39. a4 {[%emt 0:01:13]} a6 $18 {[%emt 0:00:37]} 40. Qb6 {[%emt 0:00:33]} Kf6 {[%emt 0:00:10]} 41. Rxe6+ {[%emt 0:30:21]} Rxe6 {[%emt 0:30:01]} 42. Qxb7 {[%emt 0:00:08]} g5 {[%emt 0:00:17]} 43. Qh7 {[%emt 0:01:39]} Ke5 {[%emt 0:00:42]} 44. Qg7+ {[%emt 0:00:32]} Kf5 {[%emt 0:00:35]} 45. b4 {[%emt 0:00:41]} h5 {[%emt 0:00:24]} 46. Qh7+ {[%emt 0:00:00]} Kg4 {[%emt 0:00:00]} 47. Qd7 {[%emt 0:00:00]} Kf5 {[%emt 0:00:00]} 48. b5 {[%emt 0:00:00]} axb5 {[%emt 0:00:00]} 49. axb5 {[%emt 0:00:00]} h4 {[%emt 0:00:00]} 50. b6 {[%emt 0:00:00]} Ke5 {[%emt 0:00:00]} 51. b7 {[%emt 0:00:00]} Ra6+ {[%emt 0:00:00]} 52. Kb2 {[%emt 0:00:00]} Rb6+ {[%emt 0:00:00]} 53. Kc3 {[%emt 0:00:00]} Rxb7 {[%emt 0:00:00]} 54. Qxb7 {[%emt 0:00:00]} Kf4 {[%emt 0:00:00]} 55. Kd3 {[%emt 0:00:00]} Kg3 {[%emt 0:00:00]} 56. Ke3 {[%emt 0:00:00]} g4 {[%emt 0:00:00]} 57. Qc7+ {[%emt 0:00:00]} Kg2 {[%emt 0:00:00]} 58. Kf4 {[%emt 0:00:00]} h3 {[%emt 0:00:00]} 59. Qc2+ {[%emt 0:00:00]} Kh1 {[%emt 0:00:00]} 60. Kg3 {[%emt 0:00:00]} 1-0

[Event "GER-chT Youth Countries 2018"]
[Site "Wurzburg"]
[Date "2018.10.07"]
[Round "7"]
[White "Burian, Simon"]
[Black "Fromm, Marius"]
[Result "1/2-1/2"]
[ECO "C51"]
[WhiteElo "2091"]
[BlackElo "2022"]
[Annotator "NA"]
[PlyCount "68"]
[EventDate "2018.10.03"]
[EventType "team-tourn"]
[EventCountry "GER"]
[SourceTitle "playchess.com"]
[Source "ChessBase"]
[SourceQuality "1"]
[TimeControl "40/5400+30:1800+30"]

{[%evp 8,68,-20,-8,0,32767,32767,32767,32767,32767,32767,32767,32767,32767,32767,32767,32767,0,0,-20,-6,-24,-12,-38,0,1,20,29,45,39,42,32767,32767,12,54,32767,52,32767,32767,67,98,100,89,101,109,32767,32767,10,14,0,25,32767,32767,32767,32767,11,32767,0,32767,32767,32767,32767,-8]} 1. e4 {[%emt 0:00:00]} e5 {[%emt 0:00:00]} 2. Nf3 {[%emt 0:00:00]} Nc6 {[%emt 0:00:00]} 3. Bc4 {[%emt 0:00:24]} Bc5 {[%emt 0:00:00]} 4. b4 {[%emt 0:00:24]} Bxb4 {[%emt 0:12:20]} 5. c3 {[%emt 0:05:09]} Be7 {[%emt 0:00:32] LiveBook: 301 Games} 6. d4 {[%emt 0:01:06]} Na5 {[%emt 0:00:35]} 7. Nxe5 {[%emt 0:02:19]} Nxc4 {[%emt 0:00:05]} 8. Nxc4 {[%emt 0:00:04]} d5 {[%emt 0:00:19]} 9. exd5 {[%emt 0:01:53]} Qxd5 {[%emt 0:00:15]} 10. Ne3 {[%emt 0:00:04]} Qd8 {[%emt 0:03:20]} 11. O-O {[%emt 0:02:42]} Nf6 {[%emt 0:00:22]} 12. c4 {[%emt 0:04:09]} O-O {[%emt 0:03:07]} 13. Nc3 {[%emt 0:03:58]} c6 {[%emt 0:02:53]} 14. a4 {[%emt 0:05:47] C51: Evans Gambit: Declined and Accepted without 5...Ba5} (14. Rb1 Rb8 15. Bb2 b5 16. Ba1 Bd7 17. d5 b4 18. d6 Bxd6 19. Qxd6 bxc3 20. Qd3 Be6 21. Qxc3 Qc7 22. Rxb8 Rxb8 {1-0 (51) Hector,J (2614)-Ernst,T (2504) Sweden 2009}) 14... Qa5 $146 {[%emt 0:12:53]} ({Predecessor:} 14... a5 15. Ba3 Re8 16. Bxe7 Qxe7 17. Qf3 Rb8 18. Rab1 Qa3 19. Nc2 Qd6 20. c5 Qc7 21. Ne3 Be6 22. h3 Red8 23. Rfd1 Rd7 24. Nf5 Bxf5 25. Qxf5 Rbd8 26. Ne4 Nxe4 {0-1 (26) Negru,L (1558)-Van Lieshout,H (1351) IECC email 2002}) 15. Bb2 {[%emt 0:03:37]} Rd8 {[%emt 0:05:14]} 16. Qf3 {[%emt 0:07:43]} Be6 {[%emt 0:04:48]} 17. Rfd1 {[%emt 0:06:22]} Bb4 {[%emt 0:03:11]} 18. Ne2 {[%emt 0:02:53]} Qh5 {[%emt 0:00:50]} 19. Qxh5 {[%emt 0:00:40]} Nxh5 {[%emt 0:00:07]} 20. h3 {[%emt 0:03:08]} Be7 {[%emt 0:07:21]} 21. d5 {[%emt 0:04:45]} cxd5 {[%emt 0:00:29]} 22. cxd5 {[%emt 0:00:08]} Bd7 {[%emt 0:00:11]} 23. g4 {[%emt 0:01:23]} Bf6 {[%emt 0:01:15]} 24. Rdb1 {[%emt 0:05:52]} Bxb2 {[%emt 0:01:38]} 25. Rxb2 {[%emt 0:00:05]} Nf6 {[%emt 0:00:06]} 26. Rxb7 {[%emt 0:01:20]} Bc8 {[%emt 0:04:29]} 27. Rc7 {[%emt 0:02:41]} ({White should play} 27. Rb2 $16) 27... Nxd5 {[%emt 0:04:20]} 28. Rd1 {[%emt 0:00:35]} Be6 {[%emt 0:02:04]} (28... Bxg4 $5 {[%cal Rd5c7]} 29. Rxd5 Bxe2 $11) 29. Nxd5 {[%emt 0:00:12]} Rxd5 {[%emt 0:00:49]} 30. Rxd5 {[%emt 0:00:06]} Bxd5 {[%emt 0:00:05]} 31. Nc3 {[%emt 0:01:24]} Be6 {[%emt 0:01:29]} 32. f4 {[%emt 0:07:24]} Rc8 {[%emt 0:04:06]} 33. Rxc8+ {[%emt 0:05:54]} Bxc8 {[%emt 0:00:13]} 34. Kf2 {[%emt 0:00:23]} h5 $11 {[%emt 0:04:33]} 1/2-1/2

[Event "GER-chT Youth Countries 2018"]
[Site "Wurzburg"]
[Date "2018.10.07"]
[Round "7"]
[White "Pubantz, Jan"]
[Black "Zeuner, Ole"]
[Result "1-0"]
[ECO "E11"]
[WhiteElo "2084"]
[BlackElo "1865"]
[Annotator "NA"]
[PlyCount "83"]
[EventDate "2018.10.03"]
[EventType "team-tourn"]
[EventCountry "GER"]
[SourceTitle "playchess.com"]
[Source "ChessBase"]
[SourceQuality "1"]
[TimeControl "40/5400+30:1800+30"]

1. d4 {[%emt 0:00:00]} Nf6 2. c4 e6 {[%emt 0:00:00]} 3. Nf3 Bb4+ 4. Bd2 Be7 {E11: Damenindisch (Bogoljubow-Variante)} (4... a5 5. g3 b6 6. Bg2 Bb7 7. O-O O-O 8. Bf4 Be7 9. Nc3 Ne4 10. Nb5 c6 11. Nc7 Ra7 12. Qb3 d6 13. Qxb6 Nd7 14. Qxa7 Qxc7 15. d5 c5 16. dxe6 Nb8 17. Nd4 cxd4 18. Bxe4 {1-0 (28) Xiong,J (2651)-Le,Q (2715) chess.com INT 2018}) 5. g3 {[%emt 0:00:55]} O-O 6. Bg2 c5 {[%emt 0:03:49]} 7. O-O {[%emt 0:09:10]} Nc6 {[%emt 0:02:19]} 8. Bc3 {[%emt 0:18:13]} d5 {[%emt 0:09:20]} 9. dxc5 $146 {[%emt 0:05:57]} ({Vorgänger:} 9. Nbd2 Rb8 10. b3 Ne4 11. Bb2 Nxd2 12. Nxd2 dxc4 13. dxc5 Bxc5 14. Nxc4 Qxd1 15. Rfxd1 {½-½ (29) Caldarola,S (1809)-Mazzarella,A (2028) Porto San Giorgio 2011}) 9... dxc4 {[%emt 0:03:09]} 10. Qc2 {[%emt 0:03:04]} Qc7 {[%emt 0:07:39]} 11. Na3 {[%emt 0:03:36]} Nd5 {[%emt 0:02:50]} 12. Nb5 {[%emt 0:05:01]} Qb8 {[%emt 0:02:37]} 13. Bd2 {[%emt 0:02:22]} a6 {[%emt 0:05:12]} 14. Nbd4 {[%emt 0:01:43]} Nxd4 {[%emt 0:04:46]} 15. Nxd4 {[%emt 0:00:05]} Bxc5 {[%emt 0:01:38]} 16. Qxc4 {[%emt 0:00:24]} Qd6 {[%emt 0:12:14]} 17. Nb3 {[%emt 0:03:58]} Bb6 {[%emt 0:04:06]} 18. e4 {[%emt 0:02:28]} Qc7 $1 {[%emt 0:01:56]} 19. Qe2 {[%emt 0:01:51]} Nf6 {[%emt 0:01:19]} 20. Rac1 {[%emt 0:05:59]} Qd8 {[%emt 0:02:07]} (20... Qe7 $14) 21. Bb4 {[%emt 0:07:14]} Re8 {[%emt 0:00:13]} 22. Rfd1 {[%emt 0:00:15]} Bd7 {[%emt 0:03:24]} 23. e5 {[%emt 0:08:21]} Nd5 {[%emt 0:02:32]} 24. Bxd5 {[%emt 0:00:12]} exd5 {[%emt 0:00:04]} 25. Rxd5 {[%emt 0:00:08]} Bb5 {[%emt 0:02:40]} 26. Rxd8 {[%emt 0:06:50]} Bxe2 {[%emt 0:00:12]} 27. Rxa8 {[%emt 0:00:05]} Rxa8 {[%emt 0:00:05]} 28. Ba5 {[%emt 0:00:58]} Bxa5 {[%emt 0:06:45]} 29. Nxa5 {[%emt 0:00:05]} Bf3 {[%emt 0:00:27]} 30. Rc3 {[%emt 0:01:26]} Bd5 {[%emt 0:02:47]} 31. f4 {[%emt 0:00:17]} b6 {[%emt 0:05:35]} 32. Nc4 {[%emt 0:00:22]} Bxc4 $18 {[%emt 0:01:32]} 33. Rxc4 {[%emt 0:00:04]} Kf8 {[%emt 0:01:48]} 34. Kf2 {[%emt 0:00:43]} Ra7 {[%emt 0:08:38]} 35. Rc6 {[%emt 0:00:31]} Rb7 {[%emt 0:00:23]} 36. Ke3 {[%emt 0:00:11]} Ke7 {[%emt 0:00:50]} 37. Ke4 {[%emt 0:00:48]} Kd7 {[%emt 0:03:42]} 38. Kd5 {[%emt 0:00:37]} a5 {[%emt 0:01:29]} 39. f5 {[%emt 0:00:39]} Ke7 {[%emt 0:00:52]} 40. Rd6 {[%emt 0:02:15]} g6 {[%emt 0:00:30]} 41. f6+ {[%emt 0:30:50]} Ke8 {[%emt 0:30:22]} 42. e6 {[%emt 0:00:17]} 1-0